[Event "14. Deizisauer Herbstopen 2019"]
[Site "Deizisau"]
[Date "2019.10.28"]
[Round "6.9"]
[White "Kraft, Julian"]
[Black "Coellen, Florian"]
[Result "1/2-1/2"]
[ECO "A15"]
[WhiteElo "2062"]
[BlackElo "1873"]
[Annotator "NA"]
[PlyCount "115"]
[EventDate "2019.10.25"]
[EventType "swiss"]
[EventCountry "GER"]
[SourceTitle "playchess.com"]
[Source "ChessBase"]
[SourceQuality "1"]
[TimeControl "5400+30"]

1. c4 {[%emt 0:00:00]} Nf6 {[%emt 0:00:00]} 2. g3 {[%emt 0:00:00]} e6 {[%emt 0:00:00]} 3. Nf3 {[%emt 0:00:28]} d5 {[%emt 0:00:00]} 4. b3 {[%emt 0:00:03]} Be7 {[%emt 0:00:00]} 5. Bb2 {[%emt 0:00:09]} O-O {[%emt 0:00:09]} 6. Bg2 {[%emt 0:00:08]} c5 {[%emt 0:00:07]} 7. cxd5 {[%emt 0:00:10]} exd5 {[%emt 0:00:07]} 8. d4 {[%emt 0:00:03]} b6 {[%emt 0:01:53]} 9. O-O {[%emt 0:00:54]} Bb7 {[%emt 0:00:34]} 10. Ne5 {[%emt 0:24:07]} Nbd7 {[%emt 0:06:34]} 11. Nxd7 {[%emt 0:04:20]} Qxd7 {[%emt 0:00:36]} 12. Nc3 {[%emt 0:01:35]} Rfd8 {[%emt 0:04:42] A14: English Opening: 1...e6 with b3 by White} (12... Rfe8 13. Rc1 Rac8 14. e3 c4 15. bxc4 Rxc4 16. Re1 a6 17. Bf1 Rc6 18. Qb3 b5 19. Ba3 Rec8 20. Bxe7 Qxe7 21. a3 Ne4 22. Nxd5 Qe6 23. Rxc6 Bxc6 24. Bh3 Qxh3 25. Ne7+ Kf8 26. Nxc8 Nc5 {0-1 (26) Sherman,D (2010)-Sinha,S (2250) Philadelphia 2018}) 13. Rc1 {[%emt 0:08:45]} Rac8 {[%emt 0:06:34]} 14. Rc2 $146 {[%emt 0:23:12]} ({Predecessor:} 14. dxc5 bxc5 15. Qd3 Qe6 16. Qb5 Ba6 17. Qa5 d4 18. Nb5 Qb6 19. Qxb6 axb6 20. a4 {½-½ (62) Pribila,G (2076)-Slamena,M (1991) Slovakia 2013}) 14... Qf5 {[%emt 0:11:07]} 15. Ba3 {[%emt 0:07:16]} Ne4 {[%emt 0:06:48]} 16. Nxe4 {[%emt 0:00:13]} dxe4 {[%emt 0:00:08]} 17. Rd2 {[%emt 0:01:11]} Bg5 {[%emt 0:01:26]} 18. e3 {[%emt 0:04:45]} Ba6 {[%emt 0:02:59]} 19. Re1 {[%emt 0:02:01]} Bd3 {[%emt 0:02:53]} 20. f3 {[%emt 0:05:37]} Re8 $2 {[%emt 0:15:23]} (20... cxd4 $19 21. fxe4 dxe3 22. exf5 exd2) 21. Rf2 {[%emt 0:03:36]} Qe6 {[%emt 0:03:36]} 22. dxc5 {[%emt 0:02:40]} bxc5 {[%emt 0:00:43]} 23. h4 {[%emt 0:02:02]} Bf6 {[%emt 0:00:39]} 24. Kh2 {[%emt 0:00:29]} Bc3 {[%emt 0:02:35]} 25. Bh3 $17 {[%emt 0:01:55]} Qc6 {[%emt 0:03:00]} 26. Bxc8 {[%emt 0:01:06]} Bxe1 {[%emt 0:00:28]} 27. Qxe1 {[%emt 0:00:34]} Rxc8 {[%emt 0:00:37]} 28. fxe4 {[%emt 0:01:37]} Qxe4 {[%emt 0:00:28]} 29. Rf4 {[%emt 0:00:40]} Qe6 {[%emt 0:00:22]} 30. Bb2 {[%emt 0:00:52]} f6 {[%emt 0:04:17]} 31. Qc1 {[%emt 0:02:23]} c4 {[%emt 0:01:00]} 32. bxc4 {[%emt 0:00:35]} Rxc4 {[%emt 0:00:08]} 33. Rxc4 {[%emt 0:00:05]} Qxc4 {[%emt 0:00:06]} 34. Qxc4+ Bxc4 {[%emt 0:00:06]} 35. a3 {[%emt 0:01:31]} Kf7 {[%emt 0:01:04]} 36. Kg2 {[%emt 0:00:24]} Bd5+ {[%emt 0:00:23]} 37. Kf2 {[%emt 0:00:51]} h5 {[%emt 0:01:18]} 38. Bd4 {[%emt 0:01:16]} a5 {[%emt 0:00:57]} 39. Bb6 {[%emt 0:00:53]} a4 {[%emt 0:00:08]} 40. Bd8 {[%emt 0:00:52]} g6 {[%emt 0:00:25]} 41. Ke2 {[%emt 0:00:27]} Ke6 {[%emt 0:00:19]} 42. Kd3 {[%emt 0:00:39]} f5 {[%emt 0:00:09]} 43. Kd4 {[%emt 0:00:17]} Be4 {[%emt 0:00:30]} 44. Ba5 {[%emt 0:00:23]} Bc2 {[%emt 0:00:26]} 45. Kc5 {[%emt 0:00:31]} Be4 {[%emt 0:00:23]} 46. Bc7 {[%emt 0:00:13]} Bd5 {[%emt 0:00:36]} 47. Bf4 {[%emt 0:00:16]} Be4 {[%emt 0:00:32]} 48. Kb5 {[%emt 0:00:10]} Bc2 {[%emt 0:00:11]} 49. Kc6 {[%emt 0:00:01]} Be4+ {[%emt 0:01:00]} 50. Kc7 {[%emt 0:00:08]} Bc2 {[%emt 0:00:10]} 51. Kd8 {[%emt 0:00:18]} Kf7 {[%emt 0:00:06]} 52. Kd7 {[%emt 0:00:23]} Bb1 {[%emt 0:00:24]} 53. Bg5 {[%emt 0:00:20]} Be4 {[%emt 0:00:19]} 54. Kd6 {[%emt 0:00:19]} Bb1 {[%emt 0:00:15]} 55. Bd8 {[%emt 0:00:15]} Bc2 {[%emt 0:01:25]} 56. Ke5 {[%emt 0:00:07]} Be4 {[%emt 0:00:21]} 57. Kf4 {[%emt 0:00:13]} Bb1 {[%emt 0:00:07]} 58. Kg5 {[%emt 0:00:04]} 1/2-1/2

[Event "14. Deizisauer Herbstopen 2019"]
[Site "Deizisau"]
[Date "2019.10.28"]
[Round "7.3"]
[White "Frolik, Erhard"]
[Black "Gheng, Josef"]
[Result "1/2-1/2"]
[ECO "B01"]
[WhiteElo "2317"]
[BlackElo "2190"]
[Annotator "RC"]
[PlyCount "181"]
[EventDate "2019.10.25"]
[EventType "swiss"]
[EventCountry "GER"]
[SourceTitle "playchess.com"]
[Source "ChessBase"]
[SourceQuality "1"]
[TimeControl "5400+30"]

1. e4 {[%emt 0:00:00]} d5 {[%emt 0:00:27]} 2. exd5 {[%emt 0:00:00]} Nf6 {[%emt 0:00:37]} 3. d4 {[%emt 0:00:00]} Qxd5 {[%emt 0:00:26]} 4. Nc3 Qd6 {[%emt 0:02:30]} 5. Nf3 {[%emt 0:02:57]} Bg4 {[%emt 0:00:25]} 6. h3 {[%emt 0:01:41]} Bh5 {[%emt 0:01:46]} 7. g4 {[%emt 0:00:10]} Bg6 {[%emt 0:00:11]} 8. Ne5 {[%emt 0:00:09]} c6 {[%emt 0:05:13]} 9. Bg2 {[%emt 0:08:11]} Nbd7 {[%emt 0:04:38]} 10. f4 {[%emt 0:06:44]} e6 {[%emt 0:00:27]} 11. Be3 {[%emt 0:04:24]} Nd5 {[%emt 0:00:51]} 12. Nxd5 {[%emt 0:00:50]} cxd5 {[%emt 0:00:09]} 13. O-O {[%emt 0:12:45]} Be4 {[%emt 0:06:50]} 14. Bxe4 {[%emt 0:05:33]} dxe4 {[%emt 0:03:05]} 15. c4 {[%emt 0:01:17]} f6 {[%emt 0:03:22]} 16. Nxd7 {[%emt 0:00:07]} Qxd7 {[%emt 0:00:05]} 17. d5 {[%emt 0:04:52]} exd5 {[%emt 0:01:36]} 18. Qxd5 {[%emt 0:01:26]} Qxd5 {[%emt 0:00:41]} 19. cxd5 {[%emt 0:04:32]} Kd7 {[%emt 0:00:26]} 20. Rac1 {[%emt 0:00:20]} Bd6 {[%emt 0:00:12]} 21. Rc4 {[%emt 0:00:23]} Rhe8 {[%emt 0:00:15]} 22. f5 {[%emt 0:03:15]} b5 {[%emt 0:07:06]} 23. Rc2 {[%emt 0:05:01]} Rac8 {[%emt 0:01:29]} 24. Rfc1 {[%emt 0:05:25]} Rxc2 {[%emt 0:03:00]} 25. Rxc2 {[%emt 0:00:02]} Re5 {[%emt 0:01:11]} 26. Rd2 {[%emt 0:02:51]} a5 {[%emt 0:06:04]} 27. Kf2 {[%emt 0:01:28]} h5 {[%emt 0:01:02]} 28. Bd4 {[%emt 0:05:37]} Re8 {[%emt 0:04:52]} 29. Ke3 {[%emt 0:01:49]} hxg4 {[%emt 0:00:09]} 30. hxg4 {[%emt 0:00:10]} Bg3 {[%emt 0:00:12]} 31. Rc2 {[%emt 0:04:12]} Kd6 {[%emt 0:03:11]} 32. Rc6+ {[%emt 0:00:59]} Kxd5 {[%emt 0:02:11]} 33. Rc5+ {[%emt 0:00:43]} Kd6 {[%emt 0:00:05]} 34. Rxb5 {[%emt 0:00:06]} Bh4 {[%emt 0:00:33]} 35. Rxa5 {[%emt 0:02:56]} Bg5+ {[%emt 0:00:10]} 36. Ke2 {[%emt 0:00:58]} Rh8 {[%emt 0:00:09]} 37. Bc5+ {[%emt 0:02:52]} Kc6 {[%emt 0:00:08]} 38. b4 {[%emt 0:03:12]} Rh2+ {[%emt 0:00:12]} 39. Kf1 {[%emt 0:00:33]} Bf4 {[%emt 0:03:07]} 40. a4 {[%emt 0:01:46]} Ra2 {[%emt 0:02:14]} 41. Ra7 {[%emt 0:01:53]} e3 {[%emt 0:00:33]} 42. Re7 {[%emt 0:00:48]} Rxa4 {[%emt 0:00:21]} 43. Bxe3 {[%emt 0:01:48]} Rxb4 {[%emt 0:00:32]} 44. Ke2 {[%emt 0:02:40]} Bxe3 {[%emt 0:01:19]} 45. Kxe3 {[%emt 0:00:02]} Rxg4 {[%emt 0:00:09]} 46. Kf3 {[%emt 0:00:08]} Rg1 {[%emt 0:00:10]} 47. Kf2 {[%emt 0:00:34]} Rg5 {[%emt 0:00:18]} 48. Ke3 {[%emt 0:00:03]} Kd5 {[%emt 0:00:35]} 49. Kf4 {[%emt 0:00:13]} Rg1 {[%emt 0:00:07]} 50. Rd7+ {[%emt 0:00:06]} Kc6 {[%emt 0:00:34]} 51. Rd8 {[%emt 0:00:12]} Ra1 {[%emt 0:00:27]} 52. Kg4 {[%emt 0:01:12]} Kc7 {[%emt 0:01:54]} 53. Rd4 {[%emt 0:00:31]} Rg1+ {[%emt 0:00:39]} 54. Kf4 {[%emt 0:00:16]} Rh1 {[%emt 0:01:21]} 55. Kg4 {[%emt 0:00:18]} Rh8 {[%emt 0:00:11]} 56. Rd2 {[%emt 0:00:10]} Rd8 {[%emt 0:00:14]} 57. Re2 {[%emt 0:00:59]} Rd1 {[%emt 0:01:38]} 58. Kf4 {[%emt 0:00:27]} Kd8 {[%emt 0:01:03]} 59. Kg4 {[%emt 0:01:26]} Rd5 {[%emt 0:00:26]} 60. Kf4 {[%emt 0:00:17]} Rd7 {[%emt 0:00:35]} 61. Re3 {[%emt 0:00:28]} Re7 {[%emt 0:00:27]} 62. Ra3 {[%emt 0:00:31]} Ke8 {[%emt 0:00:11]} 63. Ra8+ {[%emt 0:00:18]} Kf7 {[%emt 0:00:07]} 64. Ra3 {[%emt 0:00:11]} Kg8 {[%emt 0:00:13]} 65. Ra8+ {[%emt 0:01:16]} Kh7 {[%emt 0:00:08]} 66. Ra1 {[%emt 0:00:13]} Rb7 {[%emt 0:00:08]} 67. Rh1+ {[%emt 0:00:42]} Kg8 {[%emt 0:00:08]} 68. Rg1 {[%emt 0:00:25]} Rb2 {[%emt 0:01:21]} 69. Kf3 {[%emt 0:00:29]} Rh2 {[%emt 0:00:21]} 70. Rg3 {[%emt 0:00:18]} Kh7 {[%emt 0:00:24]} 71. Rg6 {[%emt 0:00:48]} Rh5 {[%emt 0:03:47]} 72. Kf4 {[%emt 0:00:44]} Kg8 {[%emt 0:01:21]} 73. Rg1 {[%emt 0:00:07]} Kf7 {[%emt 0:00:22]} 74. Rg2 {[%emt 0:00:24]} Rh4+ {[%emt 0:00:41]} 75. Kf3 {[%emt 0:00:10]} Rh1 {[%emt 0:00:53]} 76. Kf4 {[%emt 0:00:23]} Rf1+ {[%emt 0:00:08]} 77. Ke4 {[%emt 0:00:16]} Kg8 {[%emt 0:00:23]} 78. Rg3 {[%emt 0:00:40]} Kf8 {[%emt 0:02:55]} 79. Rg2 {[%emt 0:00:13]} Kf7 {[%emt 0:01:49]} 80. Rg3 {[%emt 0:00:37]} Ra1 {[%emt 0:02:05]} 81. Rg2 {[%emt 0:00:15]} Kg8 {[%emt 0:00:57]} 82. Kf4 {[%emt 0:00:39]} Ra4+ {[%emt 0:00:42]} 83. Kf3 {[%emt 0:00:23]} Rh4 {[%emt 0:00:26]} 84. Rg1 {[%emt 0:00:23]} Kf7 {[%emt 0:02:05]} 85. Rg2 {[%emt 0:00:12]} Rh7 {[%emt 0:00:47]} 86. Rg1 {[%emt 0:00:22]} Ke7 {[%emt 0:00:13]} 87. Kf4 {[%emt 0:00:45]} Kd6 {[%emt 0:00:24]} 88. Rd1+ {[%emt 0:00:07]} Kc5 {[%emt 0:00:12]} 89. Rg1 {[%emt 0:03:23]} Kc4 {[%emt 0:00:16]} 90. Ke4 {[%emt 0:00:19]} Kc3 {[%emt 0:00:47]} 91. Ke3 1/2-1/2

[Event "14. Deizisauer Herbstopen 2019"]
[Site "Deizisau"]
[Date "2019.10.28"]
[Round "7.4"]
[White "Reimche, Vadim"]
[Black "Gheng, Dominik"]
[Result "0-1"]
[ECO "D58"]
[WhiteElo "2080"]
[BlackElo "2068"]
[Annotator "NA RC"]
[PlyCount "92"]
[EventDate "2019.10.25"]
[EventType "swiss"]
[EventCountry "GER"]
[SourceTitle "playchess.com"]
[Source "ChessBase"]
[SourceQuality "1"]
[TimeControl "5400+30"]

1. d4 {[%emt 0:00:00]} d5 {[%emt 0:00:00]} 2. c4 {[%emt 0:00:00]} e6 {[%emt 0:00:01]} 3. Nc3 {[%emt 0:00:00]} Nf6 {[%emt 0:00:21]} 4. Bg5 {[%emt 0:00:06]} Be7 {[%emt 0:00:26]} 5. e3 {[%emt 0:00:07]} h6 {[%emt 0:00:30]} 6. Bh4 {[%emt 0:00:05]} O-O {[%emt 0:00:32]} 7. Nf3 {[%emt 0:00:06]} b6 {[%emt 0:00:29]} 8. cxd5 {[%emt 0:00:17]} exd5 {[%emt 0:00:09]} 9. Ne5 {[%emt 0:01:04]} Bb7 {[%emt 0:00:10]} 10. Bd3 {[%emt 0:01:21]} Nbd7 {[%emt 0:00:39]} 11. Nxd7 {[%emt 0:02:20]} Qxd7 {[%emt 0:07:50]} 12. Rc1 {[%emt 0:00:41]} Ne4 {[%emt 0:00:26]} 13. Bxe7 {[%emt 0:00:25]} Qxe7 {[%emt 0:00:06]} 14. O-O {[%emt 0:00:36]} Rac8 {[%emt 0:00:33]} 15. Qe2 {[%emt 0:11:05]} Rfd8 {[%emt 0:01:02]} 16. f3 {[%emt 0:03:20]} Nxc3 {[%emt 0:02:37]} 17. Rxc3 {[%emt 0:03:35]} c5 {[%emt 0:03:55]} 18. Rfc1 {[%emt 0:03:59]} Rc6 {[%emt 0:05:30]} 19. dxc5 {[%emt 0:09:41]} bxc5 {[%emt 0:00:18]} 20. Bb5 {[%emt 0:01:12]} Rc7 {[%emt 0:05:37]} 21. b4 {[%emt 0:08:43]} c4 {[%emt 0:00:31]} 22. Qb2 {[%emt 0:00:52]} Rb8 {[%emt 0:04:33]} 23. a3 {[%emt 0:03:50]} Bc8 {[%emt 0:01:06]} 24. Ba4 {[%emt 0:00:32]} a5 {[%emt 0:00:39]} 25. b5 {[%emt 0:13:23]} Qc5 {[%emt 0:01:53]} 26. Qd2 {[%emt 0:02:31]} Bd7 {[%emt 0:00:11]} 27. Rd3 {[%emt 0:08:40]} cxd3 {[%emt 0:07:30]} 28. Rxc5 {[%emt 0:00:12]} Rxc5 {[%emt 0:00:01]} 29. Qxd3 {[%emt 0:09:25]} Bxb5 {[%emt 0:00:19]} 30. Qd4 {[%emt 0:01:26]} Rc1+ {[%emt 0:01:34]} 31. Kf2 {[%emt 0:00:40]} Bc4 {[%emt 0:03:59]} 32. Kg3 {[%emt 0:02:14]} Rcb1 {[%emt 0:04:20]} 33. Qa7 {[%emt 0:03:14]} R1b2 {[%emt 0:01:52]} 34. Qxa5 {[%emt 0:03:47]} Bf1 {[%emt 0:00:08]} 35. Qxd5 {[%emt 0:02:18]} Rxg2+ {[%emt 0:00:09]} 36. Kf4 {[%emt 0:00:25]} Rxh2 {[%emt 0:06:45]} 37. Bb3 {[%emt 0:00:18]} g5+ {[%emt 0:00:47]} 38. Kg4 {[%emt 0:03:12]} h5+ {[%emt 0:00:04]} 39. Kxg5 Rb5 40. Kf6 {[%emt 0:02:48]} Rxd5 {[%emt 0:00:50]} 41. Bxd5 {[%emt 0:00:02]} h4 {[%emt 0:00:29]} 42. Bxf7+ {[%emt 0:00:18]} Kf8 {[%emt 0:00:03]} 43. e4 {[%emt 0:00:29]} h3 {[%emt 0:00:08]} 44. e5 {[%emt 0:00:11]} Re2 {[%emt 0:00:03]} 45. f4 {[%emt 0:00:51]} h2 {[%emt 0:00:07]} 46. Bd5 {[%emt 0:00:18]} Bg2 {[%emt 0:00:03]} 0-1

[Event "14. Deizisauer Herbstopen 2019"]
[Site "Deizisau"]
[Date "2019.10.28"]
[Round "7.7"]
[White "Weissenberger, Mario"]
[Black "Neiwert, Nick"]
[Result "1-0"]
[ECO "B94"]
[WhiteElo "2026"]
[BlackElo "1914"]
[Annotator "NA"]
[PlyCount "33"]
[EventDate "2019.10.25"]
[EventType "swiss"]
[EventCountry "GER"]
[SourceTitle "playchess.com"]
[Source "ChessBase"]
[SourceQuality "1"]
[TimeControl "5400+30"]

1. e4 {[%emt 0:00:00]} c5 {[%emt 0:00:00]} 2. Nf3 {[%emt 0:00:00]} d6 {[%emt 0:00:00]} 3. d4 {[%emt 0:00:00]} cxd4 {[%emt 0:00:00]} 4. Nxd4 {[%emt 0:00:00]} Nf6 {[%emt 0:00:05]} 5. Nc3 {[%emt 0:00:00]} a6 {[%emt 0:00:08]} 6. Bg5 {[%emt 0:00:00]} Nbd7 {[%emt 0:00:06]} 7. Bc4 {[%emt 0:00:00]} e6 {[%emt 0:03:40]} 8. Qe2 {[%emt 0:00:23]} Nc5 {[%emt 0:04:02]} 9. O-O-O {[%emt 0:07:47]} b5 {[%emt 0:22:00]} 10. Bd5 {[%emt 0:23:57]} Bb7 {[%emt 0:10:30]} 11. Bxb7 {[%emt 0:02:59]} Nxb7 {[%emt 0:00:10]} 12. e5 {[%emt 0:01:32]} h6 {[%emt 0:01:42]} 13. Bh4 {[%emt 0:01:08]} g5 {[%emt 0:00:27]} 14. exf6 {[%emt 0:00:09]} Qxf6 {[%emt 0:06:04]} 15. Bg3 {[%emt 0:00:31]} O-O-O {[%emt 0:01:48]} 16. h4 {[%emt 0:03:49]} Bg7 {[%emt 0:02:14]} 17. Ne4 1-0

[Event "14. Deizisauer Herbstopen 2019"]
[Site "Deizisau"]
[Date "2019.10.28"]
[Round "7.8"]
[White "Bueble, Joschua"]
[Black "Kraft, Julian"]
[Result "1/2-1/2"]
[ECO "A40"]
[WhiteElo "1720"]
[BlackElo "2062"]
[Annotator "NA"]
[PlyCount "29"]
[EventDate "2019.10.25"]
[EventType "swiss"]
[EventCountry "GER"]
[SourceTitle "playchess.com"]
[Source "ChessBase"]
[SourceQuality "1"]
[TimeControl "5400+30"]

1. d4 {[%emt 0:00:00]} e6 {[%emt 0:00:00]} 2. e4 {[%emt 0:00:00]} b6 {[%emt 0:00:00]} 3. c4 {[%emt 0:00:00]} Bb7 {[%emt 0:00:00]} 4. Bd3 {[%emt 0:00:00]} f5 {[%emt 0:00:00]} 5. exf5 {[%emt 0:00:00]} Bb4+ {[%emt 0:00:00]} 6. Kf1 {[%emt 0:02:12]} Nf6 {[%emt 0:00:00]} 7. Nf3 {[%emt 0:05:48]} O-O {[%emt 0:00:42]} 8. a3 {[%emt 0:11:38]} Be7 {[%emt 0:00:06]} 9. Nbd2 {[%emt 0:00:50]} a5 {[%emt 0:13:04]} 10. Qc2 {[%emt 0:14:49]} exf5 11. Bxf5 d5 12. Be6+ Kh8 13. Ne5 Nbd7 14. Nf7+ Rxf7 15. Bxf7 1/2-1/2

[Event "14. Deizisauer Herbstopen 2019"]
[Site "Deizisau"]
[Date "2019.10.28"]
[Round "7.9"]
[White "Gabriel, Josef"]
[Black "Valkova, Anzhelika"]
[Result "0-1"]
[ECO "C00"]
[WhiteElo "2089"]
[BlackElo "1947"]
[Annotator "NA RC"]
[PlyCount "86"]
[EventDate "2019.10.25"]
[EventType "swiss"]
[EventCountry "GER"]
[SourceTitle "playchess.com"]
[Source "ChessBase"]
[SourceQuality "1"]
[TimeControl "5400+30"]

1. e4 {[%emt 0:01:16]} e6 {[%emt 0:00:00]} 2. d3 {[%emt 0:00:40]} d5 {[%emt 0:00:00]} 3. Nd2 {[%emt 0:00:09]} c5 {[%emt 0:00:00]} 4. Ngf3 {[%emt 0:00:50]} Nc6 {[%emt 0:00:00]} 5. g3 {[%emt 0:01:00]} g6 {[%emt 0:00:26]} 6. Bg2 {[%emt 0:00:11]} Bg7 {[%emt 0:00:04]} 7. O-O {[%emt 0:00:10]} Nge7 {[%emt 0:01:23]} 8. h4 {[%emt 0:00:11]} O-O {[%emt 0:00:43]} 9. Re1 {[%emt 0:00:36]} Qc7 {[%emt 0:03:07]} 10. h5 {[%emt 0:02:40]} b5 {[%emt 0:05:15]} 11. hxg6 {[%emt 0:00:48]} fxg6 {[%emt 0:00:59]} 12. Ng5 {[%emt 0:01:33]} Bd4 {[%emt 0:01:40]} 13. Ngf3 {[%emt 0:12:10]} Qxg3 {[%emt 0:01:10]} 14. Qe2 {[%emt 0:01:16]} Qc7 {[%emt 0:01:17]} 15. e5 {[%emt 0:05:44]} c4 {[%emt 0:06:43]} 16. dxc4 {[%emt 0:04:49]} bxc4 {[%emt 0:00:06]} 17. Nxd4 {[%emt 0:12:34]} Nxd4 {[%emt 0:00:07]} 18. Qd1 {[%emt 0:00:08]} Nec6 {[%emt 0:09:05]} 19. c3 {[%emt 0:01:07]} Nf5 {[%emt 0:00:33]} 20. Nf3 {[%emt 0:00:22]} Rb8 {[%emt 0:02:43]} 21. Rb1 {[%emt 0:06:56]} Qa5 {[%emt 0:01:08]} 22. a3 {[%emt 0:01:17]} Rb3 {[%emt 0:03:49]} 23. Bg5 {[%emt 0:04:57]} Qb6 {[%emt 0:00:56]} 24. Qd2 {[%emt 0:04:49]} Na5 {[%emt 0:04:28]} 25. Bf6 {[%emt 0:01:06]} Nb7 {[%emt 0:05:29]} 26. Bh3 {[%emt 0:00:19]} Nbd6 {[%emt 0:06:04]} 27. Bxf5 {[%emt 0:04:10]} Nxf5 {[%emt 0:00:09]} 28. Kg2 {[%emt 0:01:22]} Bb7 {[%emt 0:02:56]} 29. Nd4 {[%emt 0:02:25]} Nxd4 {[%emt 0:00:07]} 30. cxd4 {[%emt 0:00:02]} Rf7 {[%emt 0:00:46]} 31. Re3 {[%emt 0:00:38]} Rd7 {[%emt 0:05:01]} 32. Rxb3 {[%emt 0:01:33]} Qxb3 {[%emt 0:00:05]} 33. Rc1 {[%emt 0:00:22]} Qd3 {[%emt 0:09:42]} 34. Qc3 {[%emt 0:11:10]} Qe4+ {[%emt 0:05:12]} 35. f3 {[%emt 0:00:19]} Qf4 {[%emt 0:01:20]} 36. Rh1 {[%emt 0:00:44]} h5 {[%emt 0:02:18]} 37. Rh4 {[%emt 0:00:45]} Qf5 {[%emt 0:00:05]} 38. Qb4 {[%emt 0:01:31]} Qc2+ {[%emt 0:03:21]} 39. Kh3 {[%emt 0:00:01]} Qb3 {[%emt 0:01:57]} 40. Qxb3 {[%emt 0:04:01]} cxb3 {[%emt 0:00:04]} 41. Bg5 {[%emt 0:00:06]} Rc7 {[%emt 0:01:32]} 42. Bd2 {[%emt 0:00:01]} Rc2 {[%emt 0:00:08]} 43. Bc3 {[%emt 0:00:01]} Rxc3 {[%emt 0:00:13]} 0-1